fUSD/lending_fUSD_20250611
["ID","MTS","AMOUNT","RATE_DAILY","PERIOD"]
[365446764,1749677469523,-866.339112,0.00019882,2]
[365446765,1749677469533,-866.339112,0.00019882,2]
[365446766,1749677469542,-151.0,0.00019882,2]
[365446767,1749677469552,-157.359212,0.00019882,2]
[365446768,1749677469561,-600.0,0.00019889,4]
[365446769,1749677469571,-16184.97766643,0.00019889,2]
[365446770,1749677469580,-485.0,0.0001989,2]
[365446771,1749677469590,-500.0,0.0001989,2]
[365446772,1749677469599,-211.0,0.0001989,2]
[365446773,1749677469608,-156.587,0.00019891,2]
[365446774,1749677469617,-215.0738,0.00019891,2]
[365446775,1749677469626,-726.594984,0.00019892,2]
[365446776,1749677469636,-726.594984,0.00019892,2]
[365446777,1749677469645,-310.9765213,0.00019893,2]
[365446778,1749677469655,-168.0,0.00019894,2]
[365446779,1749677469664,-244.28087761,0.00019897,2]
[365446780,1749677469673,-63618.86447433,0.00019898,2]
[365446781,1749677469682,-276.375659,0.00019898,2]
[365446782,1749677469691,-151.0,0.00019898,2]
[365446783,1749677469700,-151.0,0.00019898,2]
[365446784,1749677469710,-151.0,0.00019898,2]
[365446785,1749677469719,-151.0,0.00019898,2]
[365446786,1749677469727,-151.0,0.00019898,2]
[365446787,1749677469737,-263.082648,0.00019898,2]
[365446788,1749677469747,-620.478302,0.00019898,2]
[365446789,1749677469756,-263.082648,0.00019898,2]
[365446790,1749677469765,-151.0,0.00019898,2]
[365446791,1749677469775,-620.478302,0.00019898,2]
[365446792,1749677469785,-151.0,0.00019898,2]
[365446793,1749677469794,-151.0,0.00019898,2]
[365446794,1749677469804,-151.0,0.00019898,2]
[365446795,1749677469813,-151.0,0.00019898,2]
[365446796,1749677469822,-487.590113,0.00019898,2]
[365446797,1749677469832,-487.590113,0.00019898,2]
[365446798,1749677469841,-184.857317,0.00019898,2]
[365446799,1749677469850,-184.857317,0.00019898,2]
[365446800,1749677469860,-212.807284,0.00019898,2]
[365446801,1749677469869,-212.807284,0.00019898,2]
[365446802,1749677469878,-151.0,0.00019898,2]
[365446803,1749677469887,-338.311055,0.00019898,2]
[365446804,1749677469897,-338.311055,0.00019898,2]
[365446805,1749677469906,-479.414212,0.00019898,2]
[365446806,1749677469915,-479.414212,0.00019898,2]
[365446807,1749677469924,-151.0,0.00019898,2]
[365446808,1749677469933,-151.0,0.00019898,2]
[365446809,1749677469943,-151.0,0.00019898,2]
[365446810,1749677469954,-151.0,0.00019898,2]
[365446811,1749677469963,-151.0,0.00019898,2]
[365446812,1749677469972,-151.0,0.00019898,2]
[365446813,1749677469981,-151.0,0.00019898,2]
[365446814,1749677469990,-151.0,0.00019898,2]
[365446815,1749677469999,-272.8802,0.00019898,2]
[365446816,1749677470008,-272.8802,0.00019898,2]
[365446817,1749677470019,-154.03047,0.00019898,2]
[365446818,1749677470032,-154.03047,0.00019898,2]
[365446819,1749677470041,-151.0,0.00019898,2]
[365446820,1749677470050,-151.0,0.00019898,2]
[365446821,1749677470059,-382.733623,0.00019898,2]
[365446822,1749677470069,-382.733623,0.00019898,2]
[365446823,1749677470077,-151.0,0.00019898,2]
[365446824,1749677470086,-151.0,0.00019898,2]
[365446825,1749677470096,-151.0,0.00019898,2]
[365446826,1749677470105,-151.0,0.00019898,2]
[365446827,1749677470114,-151.0,0.00019898,2]
[365446828,1749677470124,-151.0,0.00019898,2]
[365446829,1749677470133,-151.0,0.00019898,2]
[365446830,1749677470142,-251.195307,0.00019898,2]
[365446831,1749677470151,-151.0,0.00019898,2]
[365446832,1749677470160,-321.344881,0.00019898,2]
[365446833,1749677470169,-321.344881,0.00019898,2]
[365446834,1749677470178,-2193.8,0.000199,2]
[365446835,1749677470187,-272.82252885,0.000199,2]
[365446836,1749677470196,-743.0278652,0.000199,2]
[365446837,1749677470206,-310.9765213,0.000199,2]
[365446838,1749677470215,-818.0,0.000199,7]
[365446839,1749677470224,-250.64495419,0.000199,2]
[365446840,1749677470233,-219.23291504,0.000199,2]
[365446841,1749677470242,-2691.8461202,0.00019907,2]
[365446842,1749677470251,-244.28087762,0.00019909,2]
[365446843,1749677470260,-6017.93459075,0.00019909,2]
[365446844,1749677470269,-244.28087761,0.00019915,2]
[365446845,1749677470280,-485.0,0.00019917,2]
[365446846,1749677470289,-500.0,0.00019917,2]
[365446847,1749677470298,-8575.90471689,0.0001992,2]
[365446848,1749677470308,-151.0,0.00019921,2]
[365446849,1749677470318,-17151.80943379,0.00019921,2]
[365446850,1749677470328,-244.28087761,0.00019923,2]
[365446851,1749677470338,-500.0,0.00019925,2]
[365446852,1749677470347,-838.92,0.00019925,2]
[365446853,1749677470357,-17169.2333776,0.00019925,2]
[365446854,1749677470366,-17151.80943379,0.00019928,2]
[365446855,1749677470377,-20106.10551749,0.00019929,2]
[365446856,1749677470386,-17169.2333776,0.00019931,2]
[365446857,1749677470396,-244.28087762,0.00019933,2]
[365446858,1749677470406,-1016.4,0.00019938,2]
[365446859,1749677470415,-815.350384,0.00019939,2]
[365446860,1749677470425,-815.350384,0.00019939,2]
[365446861,1749677470434,-296.300248,0.00019939,2]
[365446862,1749677470444,-151.0,0.00019939,2]
[365446863,1749677470454,-296.300248,0.00019939,2]
[365446864,1749677470463,-151.0,0.00019939,2]
[365446865,1749677470473,-151.0,0.00019939,2]
[365446866,1749677470482,-407.95702,0.00019939,2]
[365446867,1749677470492,-407.95702,0.00019939,2]
[365446868,1749677470501,-151.0,0.00019939,2]
[365446869,1749677470511,-151.0,0.00019939,2]
[365446870,1749677470520,-151.0,0.00019939,2]
[365446871,1749677470531,-166.434774,0.00019939,2]
[365446872,1749677470540,-3001.777758,0.00019939,2]
[365446873,1749677470550,-3001.777758,0.00019939,2]
[365446874,1749677470560,-151.0,0.00019939,2]
[365446875,1749677470570,-151.0,0.00019939,2]
[365446876,1749677470579,-866.339112,0.00019939,2]
[365446877,1749677470588,-866.339112,0.00019939,2]
[365446878,1749677470598,-151.0,0.00019939,2]
[365446879,1749677470607,-20106.10551749,0.00019939,2]
[365446880,1749677470617,-485.0,0.00019945,2]
[365446881,1749677470626,-500.0,0.00019945,2]
[365446882,1749677470635,-500.0,0.00019946,2]
[365446883,1749677470645,-726.594984,0.00019955,2]
[365446884,1749677470654,-726.594984,0.00019955,2]
[365446885,1749677470663,-16184.97766643,0.00019955,2]
[365446886,1749677470673,-8379.64788891,0.00019963,2]
[365446887,1749677470682,-17151.80943379,0.00019966,2]
[365446888,1749677470691,-6017.93459075,0.00019969,2]
[365446889,1749677470701,-6100.9661303,0.00019969,2]
[365446890,1749677470710,-6100.9661303,0.00019972,2]
[365446891,1749677470720,-485.0,0.00019972,2]
[365446892,1749677470729,-255.16297149,0.00019972,2]
[365446893,1749677470738,-500.0,0.00019973,2]
[365446894,1749677470747,-500.0,0.00019973,2]
[365446895,1749677470757,-500.0,0.00019973,2]
[365446896,1749677470766,-159.94691324,0.00019973,2]
[365446897,1749677470776,-596.4160774,0.00019973,2]
[365446898,1749677470786,-500.0,0.00019973,2]
[365446899,1749677470795,-500.0,0.00019973,2]
[365446900,1749677470804,-500.0,0.00019973,2]
[365446901,1749677470814,-500.0,0.00019973,2]
[365446902,1749677470823,-500.0,0.00019973,2]
[365446903,1749677470832,-244.28087762,0.00019975,2]
[365446904,1749677470842,-537.8551806,0.00019975,2]
[365446905,1749677470851,-6017.93459075,0.00019976,2]
[365446906,1749677470861,-17169.2333776,0.0001998,2]
[365446907,1749677470870,-151.0,0.0001998,2]
[365446908,1749677470879,-151.0,0.0001998,2]
[365446909,1749677470889,-151.0,0.0001998,2]
[365446910,1749677470898,-151.0,0.0001998,2]
[365446911,1749677470907,-151.0,0.0001998,2]
[365446912,1749677470918,-263.082648,0.0001998,2]
[365446913,1749677470927,-620.478302,0.0001998,2]
[365446914,1749677470937,-263.082648,0.0001998,2]
[365446915,1749677470946,-151.0,0.0001998,2]
[365446916,1749677470955,-620.478302,0.0001998,2]
[365446917,1749677470965,-151.0,0.0001998,2]
[365446918,1749677470974,-154.859408,0.0001998,2]
[365446919,1749677470984,-151.0,0.0001998,2]
[365446920,1749677470993,-487.590113,0.0001998,2]
[365446921,1749677471002,-487.590113,0.0001998,2]
[365446922,1749677471011,-184.857317,0.0001998,2]
[365446923,1749677471024,-184.857317,0.0001998,2]
[365446924,1749677471034,-212.807284,0.0001998,2]
[365446925,1749677471043,-212.807284,0.0001998,2]
[365446926,1749677471052,-151.0,0.0001998,2]
[365446927,1749677471062,-338.311055,0.0001998,2]
[365446928,1749677471071,-338.311055,0.0001998,2]
[365446929,1749677471080,-479.414212,0.0001998,2]
[365446930,1749677471090,-479.414212,0.0001998,2]
[365446931,1749677471103,-151.0,0.0001998,2]
[365446932,1749677471112,-151.0,0.0001998,2]
[365446933,1749677471121,-151.0,0.0001998,2]
[365446934,1749677471130,-151.0,0.0001998,2]
[365446935,1749677471139,-151.0,0.0001998,2]
[365446936,1749677471148,-151.0,0.0001998,2]
[365446937,1749677471157,-151.0,0.0001998,2]
[365446938,1749677471166,-297.001226,0.0001998,2]
[365446939,1749677471175,-272.8802,0.0001998,2]
[365446940,1749677471185,-272.8802,0.0001998,2]
[365446941,1749677471195,-154.03047,0.0001998,2]
[365446942,1749677471204,-154.03047,0.0001998,2]
[365446943,1749677471213,-151.0,0.0001998,2]
[365446944,1749677471223,-151.0,0.0001998,2]
[365446945,1749677471232,-382.733623,0.0001998,2]
[365446946,1749677471242,-382.733623,0.0001998,2]
[365446947,1749677471252,-151.0,0.0001998,2]
[365446948,1749677471261,-151.0,0.0001998,2]
[365446949,1749677471270,-151.0,0.0001998,2]
[365446950,1749677471281,-151.0,0.0001998,2]
[365446951,1749677471291,-151.0,0.0001998,2]
[365446952,1749677471300,-151.0,0.0001998,2]
[365446953,1749677471310,-151.0,0.0001998,2]
[365446954,1749677471320,-291.616551,0.0001998,2]
[365446955,1749677471330,-321.344881,0.0001998,2]
[365446956,1749677471339,-321.344881,0.0001998,2]
[365446957,1749677471349,-300.0,0.00019984,2]
[365446958,1749677471359,-666.0,0.00019985,2]
[365446959,1749677471369,-874.88101183,0.00019985,2]
[365446960,1749677471378,-151.0,0.00019985,2]
[365446961,1749677471387,-194.30261,0.00019985,2]
[365446962,1749677471397,-151.0,0.00019985,2]
[365446963,1749677471407,-263.082648,0.00019985,2]
[365446964,1749677471417,-263.082648,0.00019985,2]
[365446965,1749677471426,-620.478302,0.00019985,2]
[365446966,1749677471436,-620.478302,0.00019985,2]
[365446967,1749677471445,-500.0,0.00019985,2]
[365446968,1749677471457,-500.0,0.00019985,2]
[365446969,1749677471467,-500.0,0.00019985,2]
[365446970,1749677471476,-500.0,0.00019985,2]
[365446971,1749677471486,-838.92,0.00019985,2]
[365446972,1749677471496,-838.92,0.00019985,2]
[365446973,1749677471505,-838.92,0.00019985,2]
[365446974,1749677471515,-838.92,0.00019985,2]
[365446975,1749677471525,-151.0,0.00019986,2]
[365446976,1749677471535,-151.0,0.00019986,2]
[365446977,1749677471544,-151.0,0.00019986,2]
[365446978,1749677471553,-151.0,0.00019986,2]
[365446979,1749677471563,-151.0,0.00019986,2]
[365446980,1749677471573,-151.0,0.00019986,2]
[365446981,1749677471582,-151.0,0.00019986,2]
[365446982,1749677471592,-263.082648,0.00019986,2]
[365446983,1749677471602,-263.082648,0.00019986,2]
[365446984,1749677471611,-263.082648,0.00019986,2]
[365446985,1749677471621,-263.082648,0.00019986,2]
[365446986,1749677471630,-620.478302,0.00019986,2]
[365446987,1749677471639,-620.478302,0.00019986,2]
[365446988,1749677471649,-270.152324,0.00019986,2]
[365446989,1749677471658,-620.478302,0.00019986,2]
[365446990,1749677471668,-620.478302,0.00019986,2]
[365446991,1749677471677,-151.0,0.00019986,2]
[365446992,1749677471687,-151.0,0.00019986,2]
[365446993,1749677471696,-151.0,0.00019986,2]
[365446994,1749677471706,-151.0,0.00019986,2]
[365446995,1749677471715,-151.0,0.00019986,2]
[365446996,1749677471725,-151.0,0.00019986,2]
[365446997,1749677471734,-487.590113,0.00019986,2]
[365446998,1749677471743,-487.590113,0.00019986,2]
[365446999,1749677471752,-487.590113,0.00019986,2]
[365447000,1749677471762,-487.590113,0.00019986,2]
[365447001,1749677471771,-487.590113,0.00019986,2]
[365447002,1749677471782,-487.590113,0.00019986,2]
[365447003,1749677471791,-184.857317,0.00019986,2]
[365447004,1749677471800,-184.857317,0.00019986,2]
[365447005,1749677471809,-184.857317,0.00019986,2]
[365447006,1749677471818,-184.857317,0.00019986,2]
[365447007,1749677471828,-184.857317,0.00019986,2]
[365447008,1749677471837,-184.857317,0.00019986,2]
[365447009,1749677471846,-212.807284,0.00019986,2]
[365447010,1749677471855,-212.807284,0.00019986,2]
[365447011,1749677471864,-212.807284,0.00019986,2]
[365447012,1749677471873,-212.807284,0.00019986,2]
[365447013,1749677471882,-212.807284,0.00019986,2]
[365447014,1749677471891,-212.807288,0.00019986,2]
[365447015,1749677471901,-151.0,0.00019986,2]
[365447016,1749677471910,-338.311055,0.00019986,2]
[365447017,1749677471919,-338.311055,0.00019986,2]
[365447018,1749677471928,-338.311055,0.00019986,2]
[365447019,1749677471938,-338.311055,0.00019986,2]
[365447020,1749677471947,-338.311055,0.00019986,2]
[365447021,1749677471956,-338.3110595,0.00019986,2]
[365447022,1749677471965,-726.594984,0.00019986,2]
[365447023,1749677471975,-726.594984,0.00019986,2]
[365447024,1749677471984,-726.594984,0.00019986,2]
[365447025,1749677471994,-726.594984,0.00019986,2]
[365447026,1749677472003,-726.594984,0.00019986,2]
[365447027,1749677472013,-726.594984,0.00019986,2]
[365447028,1749677472024,-479.414212,0.00019986,2]
[365447029,1749677472036,-479.414212,0.00019986,2]
[365447030,1749677472044,-479.414212,0.00019986,2]
[365447031,1749677472054,-479.414212,0.00019986,2]
[365447032,1749677472064,-151.0,0.00019986,2]
[365447033,1749677472073,-151.0,0.00019986,2]
[365447034,1749677472083,-151.0,0.00019986,2]
[365447035,1749677472092,-151.0,0.00019986,2]
[365447036,1749677472103,-151.0,0.00019986,2]
[365447037,1749677472113,-151.0,0.00019986,2]
[365447038,1749677472122,-151.0,0.00019986,2]
[365447039,1749677472131,-251.63983314,0.00019986,2]
[365447040,1749677472140,-151.0,0.00019986,2]
[365447041,1749677472150,-151.0,0.00019986,2]
[365447042,1749677472159,-151.0,0.00019986,2]
[365447043,1749677472168,-151.0,0.00019986,2]
[365447044,1749677472183,-272.8802,0.00019986,2]
[365447045,1749677472192,-272.8802,0.00019986,2]
[365447046,1749677472201,-272.8802,0.00019986,2]
[365447047,1749677472210,-272.8802,0.00019986,2]
[365447048,1749677472219,-154.03047,0.00019986,2]
[365447049,1749677472228,-154.03047,0.00019986,2]
[365447050,1749677472237,-154.03047,0.00019986,2]
[365447051,1749677472246,-154.03047,0.00019986,2]
[365447052,1749677472255,-151.0,0.00019986,2]
[365447053,1749677472264,-151.0,0.00019986,2]
[365447054,1749677472274,-151.0,0.00019986,2]
[365447055,1749677472284,-253.582826,0.00019986,2]
[365447056,1749677472293,-382.733623,0.00019986,2]
[365447057,1749677472302,-382.733623,0.00019986,2]
[365447058,1749677472312,-382.733623,0.00019986,2]
[365447059,1749677472321,-382.733623,0.00019986,2]
[365447060,1749677472331,-151.0,0.00019986,2]
[365447061,1749677472340,-151.0,0.00019986,2]
[365447062,1749677472350,-151.0,0.00019986,2]
[365447063,1749677472359,-151.0,0.00019986,2]
[365447064,1749677472369,-300.009396,0.00019986,2]
[365447065,1749677472379,-236.429424,0.00019986,2]
[365447066,1749677472389,-151.0,0.00019986,2]
[365447067,1749677472399,-151.0,0.00019986,2]
[365447068,1749677472408,-151.0,0.00019986,2]
[365447069,1749677472418,-151.0,0.00019986,2]
[365447070,1749677472427,-151.0,0.00019986,2]
[365447071,1749677472437,-151.0,0.00019986,2]
[365447072,1749677472447,-5655.2981403,0.00019986,2]
[365447073,1749677472457,-5272.7631476,0.00019986,2]
[365447074,1749677472466,-4890.228155,0.00019986,2]
[365447075,1749677472475,-4507.6931624,0.00019986,2]
[365447076,1749677472484,-4125.1581697,0.00019986,2]
[365447077,1749677472493,-815.350384,0.00019986,2]
[365447078,1749677472506,-815.350384,0.00019986,2]
[365447079,1749677472515,-815.350384,0.00019986,2]
[365447080,1749677472525,-815.350384,0.00019986,2]
[365447081,1749677472536,-815.350384,0.00019986,2]
[365447082,1749677472546,-815.350384,0.00019986,2]
[365447083,1749677472556,-70182.3962088,0.00019986,2]
[365447084,1749677472566,-63444.3478978,0.00019986,2]
[365447085,1749677472575,-56706.2995869,0.00019986,2]
[365447086,1749677472585,-49968.2512759,0.00019986,2]
[365447087,1749677472595,-43230.202965,0.00019986,2]
[365447088,1749677472604,-296.300248,0.00019986,2]
[365447089,1749677472614,-296.300248,0.00019986,2]
[365447090,1749677472624,-296.300248,0.00019986,2]
[365447091,1749677472633,-296.300248,0.00019986,2]
[365447092,1749677472643,-151.0,0.00019986,2]
[365447093,1749677472652,-296.300248,0.00019986,2]
[365447094,1749677472662,-151.0,0.00019986,2]
[365447095,1749677472671,-296.300248,0.00019986,2]
[365447096,1749677472681,-289.566756,0.00019986,2]
[365447097,1749677472690,-151.0,0.00019986,2]
[365447098,1749677472700,-151.0,0.00019986,2]
[365447099,1749677472709,-151.0,0.00019986,2]
[365447100,1749677472719,-151.0,0.00019986,2]
[365447101,1749677472727,-151.0,0.00019986,2]
[365447102,1749677472737,-407.95702,0.00019986,2]
[365447103,1749677472746,-228.19856,0.00019986,2]
[365447104,1749677472755,-407.95702,0.00019986,2]
[365447105,1749677472764,-407.95702,0.00019986,2]
[365447106,1749677472774,-407.95702,0.00019986,2]
[365447107,1749677472785,-407.95702,0.00019986,2]
[365447108,1749677472794,-407.95702,0.00019986,2]
[365447109,1749677472803,-151.0,0.00019986,2]
[365447110,1749677472812,-151.0,0.00019986,2]
[365447111,1749677472821,-151.0,0.00019986,2]
[365447112,1749677472831,-151.0,0.00019986,2]
[365447113,1749677472840,-151.0,0.00019986,2]
[365447114,1749677472850,-255.512964,0.00019986,2]
[365447115,1749677472859,-321.344881,0.00019986,2]
[365447116,1749677472869,-321.344881,0.00019986,2]
[365447117,1749677472878,-151.0,0.00019986,2]
[365447118,1749677472887,-151.0,0.00019986,2]
[365447119,1749677472897,-238.494276,0.00019986,2]
[365447120,1749677472906,-321.344881,0.00019986,2]
[365447121,1749677472916,-321.344881,0.00019986,2]
[365447122,1749677472926,-3001.777758,0.00019986,2]
[365447123,1749677472935,-3001.777758,0.00019986,2]
[365447124,1749677472944,-3001.777758,0.00019986,2]
[365447125,1749677472953,-3001.777758,0.00019986,2]
[365447126,1749677472963,-3001.777758,0.00019986,2]
[365447127,1749677472972,-3001.777758,0.00019986,2]
[365447128,1749677472982,-151.0,0.00019986,2]
[365447129,1749677472991,-151.0,0.00019986,2]
[365447130,1749677473001,-151.0,0.00019986,2]
[365447131,1749677473010,-151.0,0.00019986,2]
[365447132,1749677473022,-196.355772,0.00019986,2]
[365447133,1749677473033,-866.339112,0.00019986,2]
[365447134,1749677473042,-866.339112,0.00019986,2]
[365447135,1749677473052,-866.339112,0.00019986,2]
[365447136,1749677473061,-866.339112,0.00019986,2]
[365447137,1749677473072,-866.339112,0.00019986,2]
[365447138,1749677473082,-866.339112,0.00019986,2]
[365447139,1749677473091,-151.0,0.00019986,2]
[365447140,1749677473102,-151.0,0.00019986,2]
[365447141,1749677473112,-151.0,0.00019986,2]
[365447142,1749677473229,-500.0,0.00019988,2]
[365447143,1749677473239,-838.92,0.00019988,2]
[365447144,1749677473249,-303179.6423351,0.00019989,2]
[365447145,1749677473259,-151.0,0.00019989,2]
[365447146,1749677473268,-151.0,0.00019989,2]
[365447147,1749677473278,-263.082648,0.00019989,2]
[365447148,1749677473288,-263.082645,0.00019989,2]
[365447149,1749677473297,-620.478302,0.00019989,2]
[365447150,1749677473307,-620.478292,0.00019989,2]
[365447151,1749677473318,-151.0,0.00019989,2]
[365447152,1749677473329,-151.0,0.00019989,2]
[365447153,1749677473339,-487.590113,0.00019989,2]
[365447154,1749677473349,-487.590116,0.00019989,2]
[365447155,1749677473359,-184.857317,0.00019989,2]
[365447156,1749677473369,-184.85731,0.00019989,2]
[365447157,1749677473379,-726.594984,0.00019989,2]
[365447158,1749677473389,-726.594984,0.00019989,2]
[365447159,1749677473399,-479.414212,0.00019989,2]
[365447160,1749677473409,-479.414212,0.00019989,2]
[365447161,1749677473419,-151.0,0.00019989,2]
[365447162,1749677473429,-151.0,0.00019989,2]
[365447163,1749677473439,-151.0,0.00019989,2]
[365447164,1749677473449,-276.365561,0.00019989,2]
[365447165,1749677473459,-272.8802,0.00019989,2]
[365447166,1749677473468,-272.8802,0.00019989,2]
[365447167,1749677473478,-154.03047,0.00019989,2]
[365447168,1749677473487,-154.03047,0.00019989,2]
[365447169,1749677473497,-151.0,0.00019989,2]
[365447170,1749677473507,-382.733623,0.00019989,2]
[365447171,1749677473517,-382.733623,0.00019989,2]
[365447172,1749677473527,-151.0,0.00019989,2]
[365447173,1749677473538,-168.253297,0.00019989,2]
[365447174,1749677473548,-151.0,0.00019989,2]
[365447175,1749677473558,-151.0,0.00019989,2]
[365447176,1749677473568,-151.0,0.00019989,2]
[365447177,1749677473577,-815.350384,0.00019989,2]
[365447178,1749677473587,-815.350378,0.00019989,2]
[365447179,1749677473596,-296.300248,0.00019989,2]
[365447180,1749677473606,-296.300246,0.00019989,2]
[365447181,1749677473615,-151.0,0.00019989,2]
[365447182,1749677473625,-500.0,0.00019989,2]
[365447183,1749677473634,-407.95702,0.00019989,2]
[365447184,1749677473645,-407.9570235,0.00019989,2]
[365447185,1749677473654,-151.0,0.00019989,2]
[365447186,1749677473664,-838.92,0.00019989,2]
[365447187,1749677473674,-321.344881,0.00019989,2]
[365447188,1749677473684,-321.344881,0.00019989,2]
[365447189,1749677473694,-3001.777758,0.00019989,2]
[365447190,1749677473704,-3001.77776,0.00019989,2]
[365447191,1749677473714,-866.339112,0.00019989,2]
[365447192,1749677473724,-866.339117,0.00019989,2]
[365447193,1749677473733,-252.049815,0.00019989,2]
[365447194,1749677473743,-20009.9582211,0.0001999,2]
[365447195,1749677473752,-113679.23843294,0.0001999,2]
[365447196,1749677476476,-490.0,0.00019178,2]
[365447197,1749677476486,-490.0,0.00019178,2]
[365447198,1749677476496,-250.0,0.00019178,2]
[365447199,1749677476506,-490.0,0.00019342,2]
[365447200,1749677476516,-470.0,0.00019342,2]
[365447201,1749677476526,-480.0,0.00019506,2]
[365447202,1749677476537,-490.0,0.00019671,2]
[365447203,1749677476547,-490.0,0.00019835,2]
[365447204,1749677476557,-50118.16698218,0.0001999,2]
[365447205,1749677476567,-537.8551806,0.0001999,2]
[365447206,1749677476578,-9414.22,0.00019998,2]
[365447207,1749677476587,-7239.41784005,0.00019999,2]
[365447208,1749677476596,-1000.0,0.00019999,3]
[365447209,1749677476606,-1000.0,0.00019999,2]
[365447210,1749677476615,-10528.34451233,0.00019999,2]
[365447211,1749677476625,-500.0,0.00019999,2]
[365447212,1749677476635,-500.0,0.00019999,2]
[365447213,1749677476645,-500.0,0.00019999,2]
[365447214,1749677476654,-292.12628574,0.00019999,2]
[365447215,1749677476665,-838.92,0.00019999,2]
[365447216,1749677476675,-838.92,0.00019999,2]
[365447217,1749677476685,-838.92,0.00019999,2]
[365447218,1749677476695,-838.92,0.00019999,2]
[365447219,1749677476705,-838.9961064,0.00019999,2]
[365447220,1749677476715,-1000.0,0.00019999,2]
[365447221,1749677476725,-996.8864,0.00019999,2]
[365447222,1749677476734,-485.0,0.0002,2]
[365447223,1749677476744,-973409.00792551,0.0002,2]
[365447224,1749677476790,-490.0,0.00019178,2]
[365447225,1749677476800,-10902.20996994,0.0002,2]
[365447226,1749677476812,-8486.38478001,0.0002,2]
[365447227,1749677478212,286.48545815,0.00017999,2]
[365447230,1749677522768,2393.62,0.00017889,2]
[365447231,1749677616761,500.0,0.00016384,2]
[365447232,1749677711246,391.08,0.00013699,2]
[365447234,1749677791888,1078.0,0.00017235,2]
[365447235,1749677795637,1219.8,0.00017862,2]
[365447236,1749677836529,1027.35,0.00017907,2]
[365447237,1749678043392,1201.38,0.00015968,2]
[365447238,1749678066385,200.0,0.00017886,2]
[365447239,1749678137213,582.39,0.00017884,2]
[365447242,1749678203307,150.0,0.00017845,7]
[365447243,1749678227741,1000.0,0.00017843,2]
[365447244,1749678251644,204.0,0.00017916,2]
[365447245,1749678258148,-166.09,0.00018142,2]
[365447246,1749678338195,168.04,0.00017842,2]
[365447247,1749678395298,398.09,0.00017991,2]
[365447248,1749678409715,368.5,0.00017848,2]
[365447249,1749678413667,839.23,0.00017848,2]
[365447250,1749678430317,-911.91,0.00018142,2]
[365447251,1749678430338,-628.54453617,0.00018232,2]
[365447252,1749678450087,-572.83546383,0.00018232,2]
[365447253,1749678450370,-247.98,0.00018356,2]
[365447254,1749678450394,-544.91126935,0.00018365,2]
[365447257,1749678477639,200.0,0.00017915,2]
[365447258,1749678494029,-166.09,0.00018,2]
[365447259,1749678498554,-170.95528624,0.00018,2]
[365447260,1749678541844,300.0,0.00017999,2]
[365447261,1749678552110,209.0,0.00017916,2]
[365447262,1749678570005,4144.81692073,0.00017999,2]
[365447263,1749678584868,500.0,0.00016384,2]
[365447264,1749678601783,1200.0,0.00017999,2]
[365447294,1749678632147,-1153.8479346,0.00018,2]
[365447295,1749678632159,-627.10411766,0.00018,2]
[365447296,1749678632170,-277.215,0.00018,2]
[365447297,1749678632318,-16433.64699919,0.00018,2]
[365447309,1749678637753,-480.0,0.00018,2]
[365447312,1749678637862,-425.92237527,0.00018,2]